[Event "Titled Tuesday Blitz April 12 Early 2022"]
[White "Paravyan, David"]
[Black "Riehle, Marco"]
[WhiteFideId "4194985"]
[BlackFideId "12904392"]
[WhiteElo "2569"]
[BlackElo "2462"]
[Result "1/2-1/2"]
[Round "01"]
[TimeControl "180+1"]
[Date "2022.04.12"]
[WhiteClock "0:00:06"]
[BlackClock "0:00:28"]

1. e4 {[%clk 0:03:00]}  e5 {[%clk 0:02:55]} 2. Nf3 {[%clk 0:03:00]}  Nf6 {[%clk 0:02:55]} 3. Nc3 {[%clk 0:03:01]}  Nc6 {[%clk 0:02:55]} 4. d4 {[%clk 0:03:00]}  exd4 {[%clk 0:02:56]} 5. Nxd4 {[%clk 0:03:00]}  Bb4 {[%clk 0:02:56]} 6. Nxc6 {[%clk 0:03:01]}  bxc6 {[%clk 0:02:56]} 7. Bd3 {[%clk 0:03:01]}  d5 {[%clk 0:02:57]} 8. exd5 {[%clk 0:03:02]}  O-O {[%clk 0:02:57]} 9. O-O {[%clk 0:03:03]}  cxd5 {[%clk 0:02:57]} 10. Bg5 {[%clk 0:03:03]}  c6 {[%clk 0:02:58]} 11. Qf3 {[%clk 0:03:04]}  Re8 {[%clk 0:02:57]} 12. Rae1 {[%clk 0:02:42]}  Be6 {[%clk 0:02:45]} 13. a3 {[%clk 0:02:36]}  Be7 {[%clk 0:02:44]} 14. h3 {[%clk 0:02:33]}  h6 {[%clk 0:02:42]} 15. Bf4 {[%clk 0:02:32]}  a5 {[%clk 0:02:36]} 16. Ne2 {[%clk 0:02:27]}  Qb6 {[%clk 0:02:33]} 17. Be5 {[%clk 0:02:16]}  Nd7 {[%clk 0:02:31]} 18. Bc3 {[%clk 0:02:16]}  c5 {[%clk 0:02:29]} 19. Nf4 {[%clk 0:02:14]}  d4 {[%clk 0:02:27]} 20. Bd2 {[%clk 0:02:13]}  Bg5 {[%clk 0:02:13]} 21. h4 {[%clk 0:01:47]}  Bxf4 {[%clk 0:02:08]} 22. Bxf4 {[%clk 0:01:45]}  Qxb2 {[%clk 0:02:05]} 23. Rb1 {[%clk 0:01:04]}  Qc3 {[%clk 0:02:05]} 24. Rfd1 {[%clk 0:01:01]}  Kh8 {[%clk 0:01:36]} 25. Bd2 {[%clk 0:00:53]}  Qxa3 {[%clk 0:01:36]} 26. Ra1 {[%clk 0:00:54]}  Ba2 {[%clk 0:01:36]} 27. Qxf7 {[%clk 0:00:21]}  Bxf7 {[%clk 0:01:35]} 28. Rxa3 {[%clk 0:00:22]}  Ne5 {[%clk 0:01:28]} 29. Bf1 {[%clk 0:00:21]}  Bg6 {[%clk 0:01:15]} 30. Rc1 {[%clk 0:00:17]}  c4 {[%clk 0:01:12]} 31. Bxa5 {[%clk 0:00:10]}  Nc6 {[%clk 0:00:55]} 32. Rca1 {[%clk 0:00:10]}  Nxa5 {[%clk 0:00:44]} 33. Rxa5 {[%clk 0:00:11]}  Rxa5 {[%clk 0:00:44]} 34. Rxa5 {[%clk 0:00:12]}  Bxc2 {[%clk 0:00:43]} 35. Bxc4 {[%clk 0:00:09]}  Rd8 {[%clk 0:00:43]} 36. Rd5 {[%clk 0:00:03]}  Rxd5 {[%clk 0:00:40]} 37. Bxd5 {[%clk 0:00:04]}  d3 {[%clk 0:00:32]} 38. Be4 {[%clk 0:00:05]}  Bb1 {[%clk 0:00:32]} 39. Bf3 {[%clk 0:00:05]}  Bc2 {[%clk 0:00:30]} 40. Be4 {[%clk 0:00:05]}  Bb1 {[%clk 0:00:29]} 41. Bf3 {[%clk 0:00:06]}  Bc2 {[%clk 0:00:28]} 42. Be4 {[%clk 0:00:06]} 1/2-1/2


[Site "https://www.chess.com"]

[Event "Titled Tuesday Blitz April 12 Early 2022"]
[White "Pesotskiy, Mikhail"]
[Black "Abdrlauf, Elham"]
[WhiteFideId "34164453"]
[BlackFideId "1533533"]
[WhiteElo "2457"]
[BlackElo "2850"]
[Result "0-1"]
[Round "01"]
[TimeControl "180+1"]
[Date "2022.04.13"]
[WhiteClock "0:00:02"]
[BlackClock "0:00:41"]

1. d4 {[%clk 0:02:59]}  Nf6 {[%clk 0:02:59]} 2. c4 {[%clk 0:03:00]}  e6 {[%clk 0:02:58]} 3. Nc3 {[%clk 0:03:00]}  d5 {[%clk 0:02:58]} 4. cxd5 {[%clk 0:03:00]}  exd5 {[%clk 0:02:59]} 5. Bg5 {[%clk 0:03:00]}  c6 {[%clk 0:02:59]} 6. e3 {[%clk 0:03:01]}  Bd6 {[%clk 0:03:00]} 7. Bd3 {[%clk 0:03:00]}  O-O {[%clk 0:03:00]} 8. Qc2 {[%clk 0:03:01]}  h6 {[%clk 0:03:00]} 9. Bh4 {[%clk 0:03:01]}  Re8 {[%clk 0:03:01]} 10. Nf3 {[%clk 0:02:46]}  Be6 {[%clk 0:02:59]} 11. O-O {[%clk 0:02:29]}  Nbd7 {[%clk 0:02:59]} 12. e4 {[%clk 0:02:24]}  dxe4 {[%clk 0:02:59]} 13. Nxe4 {[%clk 0:02:25]}  Be7 {[%clk 0:02:59]} 14. Ne5 {[%clk 0:02:25]}  Nxe4 {[%clk 0:02:55]} 15. Bxe7 {[%clk 0:02:25]}  Rxe7 {[%clk 0:02:53]} 16. Bxe4 {[%clk 0:02:26]}  Nf6 {[%clk 0:02:53]} 17. Rfd1 {[%clk 0:02:07]}  Nxe4 {[%clk 0:02:47]} 18. Qxe4 {[%clk 0:02:08]}  Bd5 {[%clk 0:02:48]} 19. Qf4 {[%clk 0:02:05]}  Qd6 {[%clk 0:02:45]} 20. a3 {[%clk 0:01:56]}  Rae8 {[%clk 0:02:45]} 21. h4 {[%clk 0:01:46]}  Bb3 {[%clk 0:02:04]} 22. Rd2 {[%clk 0:01:26]}  f6 {[%clk 0:01:48]} 23. Ng6 {[%clk 0:01:25]}  Re1+ {[%clk 0:01:45]} 24. Rxe1 {[%clk 0:01:25]}  Rxe1+ {[%clk 0:01:45]} 25. Kh2 {[%clk 0:01:26]}  Qxf4+ {[%clk 0:01:45]} 26. Nxf4 {[%clk 0:01:27]}  Re4 {[%clk 0:01:42]} 27. g3 {[%clk 0:01:26]}  g5 {[%clk 0:01:42]} 28. Ng2 {[%clk 0:01:14]}  Kf7 {[%clk 0:01:40]} 29. hxg5 {[%clk 0:01:13]}  hxg5 {[%clk 0:01:40]} 30. Ne3 {[%clk 0:01:13]}  Ke6 {[%clk 0:01:35]} 31. Rd3 {[%clk 0:01:12]}  Bd5 {[%clk 0:01:34]} 32. f3 {[%clk 0:01:12]}  Bc4 {[%clk 0:01:21]} 33. Nxc4 {[%clk 0:00:54]}  Re2+ {[%clk 0:01:22]} 34. Kh3 {[%clk 0:00:54]}  Kd5 {[%clk 0:01:19]} 35. Ne3+ {[%clk 0:00:54]}  Ke6 {[%clk 0:01:19]} 36. f4 {[%clk 0:00:42]}  gxf4 {[%clk 0:01:12]} 37. gxf4 {[%clk 0:00:43]}  Rxb2 {[%clk 0:01:13]} 38. d5+ {[%clk 0:00:43]}  cxd5 {[%clk 0:01:11]} 39. Nxd5 {[%clk 0:00:44]}  Kf5 {[%clk 0:01:11]} 40. Rc3 {[%clk 0:00:31]}  Rd2 {[%clk 0:00:58]} 41. Rc5 {[%clk 0:00:29]}  Rd3+ {[%clk 0:00:55]} 42. Kh4 {[%clk 0:00:21]}  Rxa3 {[%clk 0:00:54]} 43. Rc7 {[%clk 0:00:21]}  Ra5 {[%clk 0:00:45]} 44. Ne7+ {[%clk 0:00:13]}  Kxf4 {[%clk 0:00:45]} 45. Rxb7 {[%clk 0:00:14]}  Ra1 {[%clk 0:00:44]} 46. Ng6+ {[%clk 0:00:13]}  Kf5 {[%clk 0:00:44]} 47. Ne7+ {[%clk 0:00:14]}  Kf4 {[%clk 0:00:45]} 48. Ng6+ {[%clk 0:00:14]}  Kf5 {[%clk 0:00:45]} 49. Ne7+ {[%clk 0:00:14]}  Ke6 {[%clk 0:00:46]} 50. Ng6 {[%clk 0:00:13]}  a5 {[%clk 0:00:46]} 51. Nf4+ {[%clk 0:00:11]}  Kf5 {[%clk 0:00:46]} 52. Nd5 {[%clk 0:00:12]}  a4 {[%clk 0:00:46]} 53. Rb6 {[%clk 0:00:11]}  a3 {[%clk 0:00:46]} 54. Ra6 {[%clk 0:00:04]}  a2 {[%clk 0:00:44]} 55. Ne3+ {[%clk 0:00:01]}  Kf4 {[%clk 0:00:42]} 56. Ng2+ {[%clk 0:00:02]}  Kf3 {[%clk 0:00:41]} 57. Kh5 {[%clk 0:00:02]} 0-1


[Site "https://www.chess.com"]

[Event "Titled Tuesday Blitz April 12 Early 2022"]
[White "Petrova, Irina"]
[Black "Brodowski, Piotr"]
[WhiteFideId "14124122"]
[BlackFideId "1124480"]
[WhiteElo "1993"]
[BlackElo "2422"]
[Result "0-1"]
[Round "01"]
[TimeControl "180+1"]
[Date "2022.04.13"]
[WhiteClock "0:00:07"]
[BlackClock "0:00:10"]

1. e4 {[%clk 0:02:50]}  d6 {[%clk 0:02:59]} 2. d4 {[%clk 0:02:50]}  Nf6 {[%clk 0:02:59]} 3. Nc3 {[%clk 0:02:50]}  g6 {[%clk 0:02:59]} 4. h3 {[%clk 0:02:46]}  Bg7 {[%clk 0:02:57]} 5. Be3 {[%clk 0:02:44]}  c6 {[%clk 0:02:54]} 6. a4 {[%clk 0:02:41]}  a5 {[%clk 0:02:52]} 7. Nf3 {[%clk 0:02:38]}  Nbd7 {[%clk 0:02:49]} 8. Bd3 {[%clk 0:02:37]}  Qc7 {[%clk 0:02:47]} 9. O-O {[%clk 0:02:34]}  e5 {[%clk 0:02:36]} 10. Qd2 {[%clk 0:02:30]}  O-O {[%clk 0:02:23]} 11. dxe5 {[%clk 0:02:30]}  Nxe5 {[%clk 0:02:18]} 12. Nxe5 {[%clk 0:02:29]}  dxe5 {[%clk 0:02:16]} 13. Rad1 {[%clk 0:02:27]}  Be6 {[%clk 0:02:15]} 14. Qe2 {[%clk 0:02:22]}  Nh5 {[%clk 0:01:49]} 15. Bc4 {[%clk 0:01:40]}  Nf4 {[%clk 0:01:44]} 16. Bxf4 {[%clk 0:01:40]}  exf4 {[%clk 0:01:44]} 17. Bxe6 {[%clk 0:01:37]}  fxe6 {[%clk 0:01:43]} 18. Qc4 {[%clk 0:01:33]}  Rfe8 {[%clk 0:01:38]} 19. Nb5 {[%clk 0:01:31]}  Qe5 {[%clk 0:01:33]} 20. Nd6 {[%clk 0:01:22]}  Re7 {[%clk 0:01:26]} 21. Rd3 {[%clk 0:00:39]}  Qxb2 {[%clk 0:01:03]} 22. Rb3 {[%clk 0:00:39]}  Qe5 {[%clk 0:01:01]} 23. Nxb7 {[%clk 0:00:38]}  Rb8 {[%clk 0:01:00]} 24. Nc5 {[%clk 0:00:38]}  Rxb3 {[%clk 0:00:59]} 25. cxb3 {[%clk 0:00:39]}  Qc3 {[%clk 0:00:55]} 26. Rc1 {[%clk 0:00:38]}  Qxc4 {[%clk 0:00:51]} 27. Rxc4 {[%clk 0:00:38]}  Kf7 {[%clk 0:00:50]} 28. Kf1 {[%clk 0:00:35]}  Bb2 {[%clk 0:00:41]} 29. Ke2 {[%clk 0:00:34]}  Ba3 {[%clk 0:00:41]} 30. Kd3 {[%clk 0:00:34]}  g5 {[%clk 0:00:38]} 31. Kc3 {[%clk 0:00:31]}  Bb4+ {[%clk 0:00:38]} 32. Kc2 {[%clk 0:00:30]}  Kf6 {[%clk 0:00:36]} 33. Nd3 {[%clk 0:00:30]}  c5 {[%clk 0:00:25]} 34. Nxc5 {[%clk 0:00:28]}  Be1 {[%clk 0:00:22]} 35. f3 {[%clk 0:00:27]}  h5 {[%clk 0:00:22]} 36. Nd3 {[%clk 0:00:27]}  Bg3 {[%clk 0:00:20]} 37. Rc5 {[%clk 0:00:26]}  g4 {[%clk 0:00:11]} 38. Rxh5 {[%clk 0:00:25]}  gxf3 {[%clk 0:00:12]} 39. gxf3 {[%clk 0:00:25]}  Rc7+ {[%clk 0:00:12]} 40. Rc5 {[%clk 0:00:24]}  Rh7 {[%clk 0:00:12]} 41. Rxa5 {[%clk 0:00:21]}  Rxh3 {[%clk 0:00:12]} 42. Ra8 {[%clk 0:00:20]}  Bh2 {[%clk 0:00:12]} 43. Ne1 {[%clk 0:00:19]}  Bg3 {[%clk 0:00:12]} 44. Kd2 {[%clk 0:00:18]}  Rh2+ {[%clk 0:00:12]} 45. Kd3 {[%clk 0:00:15]}  Bxe1 {[%clk 0:00:12]} 46. a5 {[%clk 0:00:14]}  Rb2 {[%clk 0:00:12]} 47. Kc4 {[%clk 0:00:14]}  Rc2+ {[%clk 0:00:12]} 48. Kb5 {[%clk 0:00:13]}  Rc3 {[%clk 0:00:13]} 49. Ka4 {[%clk 0:00:12]}  Rxf3 {[%clk 0:00:12]} 50. a6 {[%clk 0:00:13]}  Rf2 {[%clk 0:00:10]} 51. a7 {[%clk 0:00:12]}  Ra2+ {[%clk 0:00:10]} 52. Kb5 {[%clk 0:00:12]}  Ke5 {[%clk 0:00:10]} 53. b4 {[%clk 0:00:11]}  Bf2 {[%clk 0:00:10]} 54. Kc4 {[%clk 0:00:10]}  Rxa7 {[%clk 0:00:10]} 55. Rc8 {[%clk 0:00:09]}  Be3 {[%clk 0:00:10]} 56. Rf8 {[%clk 0:00:09]}  Kxe4 {[%clk 0:00:09]} 57. b5 {[%clk 0:00:09]}  e5 {[%clk 0:00:10]} 58. Kb4 {[%clk 0:00:07]}  f3 {[%clk 0:00:10]} 0-1


[Site "https://www.chess.com"]

[Event "Titled Tuesday Blitz April 12 Early 2022"]
[White "Pinheiro, Iung Alicio de O."]
[Black "Zanette, Edgard Vinicius"]
[WhiteFideId "2104350"]
[BlackFideId "2109263"]
[WhiteElo "2596"]
[BlackElo "2182"]
[Result "1-0"]
[Round "01"]
[TimeControl "180+1"]
[Date "2022.04.13"]
[WhiteClock "0:00:16"]
[BlackClock "0:00:06"]

1. c4 {[%clk 0:03:00]}  Nf6 {[%clk 0:02:58]} 2. g3 {[%clk 0:03:00]}  c6 {[%clk 0:02:54]} 3. Bg2 {[%clk 0:02:59]}  d5 {[%clk 0:02:54]} 4. Nf3 {[%clk 0:03:00]}  e6 {[%clk 0:02:53]} 5. O-O {[%clk 0:02:59]}  Be7 {[%clk 0:02:53]} 6. b3 {[%clk 0:02:51]}  O-O {[%clk 0:02:53]} 7. Bb2 {[%clk 0:02:51]}  b6 {[%clk 0:02:53]} 8. d4 {[%clk 0:02:51]}  Bb7 {[%clk 0:02:50]} 9. Nc3 {[%clk 0:02:51]}  Nbd7 {[%clk 0:02:49]} 10. Nd2 {[%clk 0:02:51]}  c5 {[%clk 0:02:45]} 11. dxc5 {[%clk 0:02:52]}  Nxc5 {[%clk 0:02:44]} 12. Rc1 {[%clk 0:02:43]}  Rc8 {[%clk 0:02:32]} 13. Nb5 {[%clk 0:02:38]}  a6 {[%clk 0:02:27]} 14. Nd4 {[%clk 0:02:38]}  Ba8 {[%clk 0:02:18]} 15. cxd5 {[%clk 0:02:27]}  Nxd5 {[%clk 0:02:11]} 16. Nc4 {[%clk 0:02:14]}  b5 {[%clk 0:02:00]} 17. Ne5 {[%clk 0:02:13]}  Bd6 {[%clk 0:01:45]} 18. Ndf3 {[%clk 0:01:55]}  f6 {[%clk 0:01:36]} 19. Nd3 {[%clk 0:01:53]}  Qe7 {[%clk 0:01:17]} 20. Nxc5 {[%clk 0:01:31]}  Bxc5 {[%clk 0:01:14]} 21. Qd3 {[%clk 0:00:58]}  Rfd8 {[%clk 0:01:06]} 22. Qb1 {[%clk 0:00:58]}  Nb4 {[%clk 0:00:45]} 23. a3 {[%clk 0:00:55]}  Nd5 {[%clk 0:00:43]} 24. b4 {[%clk 0:00:55]}  Ba7 {[%clk 0:00:40]} 25. Rfd1 {[%clk 0:00:49]}  Nb6 {[%clk 0:00:36]} 26. Rxc8 {[%clk 0:00:39]}  Rxc8 {[%clk 0:00:35]} 27. Bd4 {[%clk 0:00:35]}  Nc4 {[%clk 0:00:32]} 28. Qa1 {[%clk 0:00:35]}  e5 {[%clk 0:00:25]} 29. Bxa7 {[%clk 0:00:31]}  Qxa7 {[%clk 0:00:26]} 30. Bh3 {[%clk 0:00:28]}  Rf8 {[%clk 0:00:21]} 31. a4 {[%clk 0:00:28]}  Qb6 {[%clk 0:00:19]} 32. axb5 {[%clk 0:00:27]}  axb5 {[%clk 0:00:20]} 33. Bg2 {[%clk 0:00:23]}  Kh8 {[%clk 0:00:18]} 34. Nh4 {[%clk 0:00:23]}  Bxg2 {[%clk 0:00:18]} 35. Nxg2 {[%clk 0:00:23]}  e4 {[%clk 0:00:19]} 36. Qd4 {[%clk 0:00:21]}  Qxd4 {[%clk 0:00:15]} 37. Rxd4 {[%clk 0:00:22]}  Re8 {[%clk 0:00:11]} 38. Nf4 {[%clk 0:00:20]}  g6 {[%clk 0:00:11]} 39. Rd5 {[%clk 0:00:19]}  Na3 {[%clk 0:00:10]} 40. Rc5 {[%clk 0:00:17]}  Re7 {[%clk 0:00:09]} 41. Nd5 {[%clk 0:00:17]}  Rf7 {[%clk 0:00:08]} 42. Nc3 {[%clk 0:00:18]}  f5 {[%clk 0:00:07]} 43. Nxb5 {[%clk 0:00:17]}  Nxb5 {[%clk 0:00:06]} 44. Rxb5 {[%clk 0:00:18]}  Ra7 {[%clk 0:00:06]} 45. e3 {[%clk 0:00:18]}  Kg7 {[%clk 0:00:06]} 46. Rb6 {[%clk 0:00:18]}  Ra1+ {[%clk 0:00:05]} 47. Kg2 {[%clk 0:00:17]}  Rb1 {[%clk 0:00:06]} 48. h4 {[%clk 0:00:18]}  h5 {[%clk 0:00:05]} 49. b5 {[%clk 0:00:18]}  Rb2 {[%clk 0:00:06]} 50. Kf1 {[%clk 0:00:18]}  Kh7 {[%clk 0:00:07]} 51. Rb7+ {[%clk 0:00:17]}  Kh6 {[%clk 0:00:07]} 52. b6 {[%clk 0:00:18]}  Ra2 {[%clk 0:00:06]} 53. Rc7 {[%clk 0:00:18]}  Rb2 {[%clk 0:00:07]} 54. b7 {[%clk 0:00:18]}  Rb5 {[%clk 0:00:07]} 55. Ke1 {[%clk 0:00:18]}  Rb2 {[%clk 0:00:07]} 56. Kd1 {[%clk 0:00:18]}  g5 {[%clk 0:00:08]} 57. Kc1 {[%clk 0:00:16]}  Rb6 {[%clk 0:00:08]} 58. Kc2 {[%clk 0:00:16]}  gxh4 {[%clk 0:00:07]} 59. gxh4 {[%clk 0:00:17]}  Kg6 {[%clk 0:00:08]} 60. Kc3 {[%clk 0:00:17]}  Kf6 {[%clk 0:00:08]} 61. Kc4 {[%clk 0:00:17]}  Ke6 {[%clk 0:00:09]} 62. Kc5 {[%clk 0:00:17]}  Rb1 {[%clk 0:00:09]} 63. Kc6 {[%clk 0:00:16]}  Rb2 {[%clk 0:00:07]} 64. Rc8 {[%clk 0:00:16]}  Rb1 {[%clk 0:00:06]} 65. b8=Q {[%clk 0:00:16]} 1-0


[Site "https://www.chess.com"]

[Event "Titled Tuesday Blitz April 12 Early 2022"]
[White "Plazuelo Pascual, Juan"]
[Black "Beerdsen, Thomas"]
[WhiteFideId "32059566"]
[BlackFideId "1030108"]
[WhiteElo "2359"]
[BlackElo "2585"]
[Result "1-0"]
[Round "01"]
[TimeControl "180+1"]
[Date "2022.04.13"]
[WhiteClock "0:01:01"]
[BlackClock "0:01:14"]

1. d4 {[%clk 0:02:59]}  h6 {[%clk 0:02:58]} 2. e4 {[%clk 0:02:59]}  g5 {[%clk 0:02:58]} 3. Nc3 {[%clk 0:02:58]}  Bg7 {[%clk 0:02:59]} 4. Be3 {[%clk 0:02:57]}  d6 {[%clk 0:02:58]} 5. h4 {[%clk 0:02:56]}  g4 {[%clk 0:02:57]} 6. h5 {[%clk 0:02:52]}  c6 {[%clk 0:02:55]} 7. a4 {[%clk 0:02:51]}  a5 {[%clk 0:02:52]} 8. Nge2 {[%clk 0:02:50]}  Na6 {[%clk 0:02:50]} 9. Ng3 {[%clk 0:02:45]}  Qb6 {[%clk 0:02:45]} 10. Rb1 {[%clk 0:02:44]}  Nb4 {[%clk 0:02:39]} 11. Be2 {[%clk 0:02:43]}  Nf6 {[%clk 0:02:36]} 12. e5 {[%clk 0:01:57]}  Nfd5 {[%clk 0:02:33]} 13. Nxd5 {[%clk 0:01:56]}  Nxd5 {[%clk 0:02:34]} 14. Bxg4 {[%clk 0:01:54]}  Nxe3 {[%clk 0:02:18]} 15. fxe3 {[%clk 0:01:54]}  dxe5 {[%clk 0:02:19]} 16. Bxc8 {[%clk 0:01:52]}  Rxc8 {[%clk 0:02:20]} 17. Qg4 {[%clk 0:01:52]}  e6 {[%clk 0:01:55]} 18. Qxg7 {[%clk 0:01:50]}  Ke7 {[%clk 0:01:55]} 19. O-O {[%clk 0:01:49]}  Rcf8 {[%clk 0:01:53]} 20. Qxe5 {[%clk 0:01:47]}  Rhg8 {[%clk 0:01:52]} 21. Nf5+ {[%clk 0:01:44]}  Ke8 {[%clk 0:01:51]} 22. Ng7+ {[%clk 0:01:30]}  Ke7 {[%clk 0:01:51]} 23. Nf5+ {[%clk 0:01:28]}  Ke8 {[%clk 0:01:52]} 24. Nd6+ {[%clk 0:01:24]}  Ke7 {[%clk 0:01:51]} 25. Ne4 {[%clk 0:01:25]}  f5 {[%clk 0:01:39]} 26. Qc5+ {[%clk 0:01:22]}  Qxc5 {[%clk 0:01:39]} 27. Nxc5 {[%clk 0:01:23]}  b6 {[%clk 0:01:36]} 28. Nd3 {[%clk 0:01:23]}  Rg5 {[%clk 0:01:33]} 29. Nf4 {[%clk 0:01:23]}  Rfg8 {[%clk 0:01:34]} 30. Kf2 {[%clk 0:01:23]}  c5 {[%clk 0:01:31]} 31. c3 {[%clk 0:01:22]}  Kf6 {[%clk 0:01:30]} 32. b4 {[%clk 0:01:22]}  axb4 {[%clk 0:01:27]} 33. cxb4 {[%clk 0:01:22]}  c4 {[%clk 0:01:28]} 34. Rbc1 {[%clk 0:01:20]}  Rc8 {[%clk 0:01:27]} 35. Rc3 {[%clk 0:01:19]}  e5 {[%clk 0:01:25]} 36. dxe5+ {[%clk 0:01:17]}  Kxe5 {[%clk 0:01:26]} 37. Rfc1 {[%clk 0:01:17]}  b5 {[%clk 0:01:27]} 38. axb5 {[%clk 0:01:16]}  Ra8 {[%clk 0:01:22]} 39. Rxc4 {[%clk 0:01:16]}  Ra2+ {[%clk 0:01:23]} 40. R4c2 {[%clk 0:01:15]}  Ra4 {[%clk 0:01:22]} 41. Rc5+ {[%clk 0:01:13]}  Kd6 {[%clk 0:01:21]} 42. Rd1+ {[%clk 0:01:10]}  Ke7 {[%clk 0:01:18]} 43. Rc7+ {[%clk 0:01:10]}  Ke8 {[%clk 0:01:15]} 44. Ne6 {[%clk 0:01:07]}  Ra2+ {[%clk 0:01:15]} 45. Kf3 {[%clk 0:01:04]}  Rg3+ {[%clk 0:01:13]} 46. Kxg3 {[%clk 0:01:03]}  f4+ {[%clk 0:01:14]} 47. Kh3 {[%clk 0:01:01]} 1-0


[Site "https://www.chess.com"]

[Event "Titled Tuesday Blitz April 12 Early 2022"]
[White "Pranav, V"]
[Black "Zlatin, Alexander"]
[WhiteFideId "25060783"]
[BlackFideId "2810549"]
[WhiteElo "2349"]
[BlackElo "2228"]
[Result "1-0"]
[Round "01"]
[TimeControl "180+1"]
[Date "2022.04.12"]
[WhiteClock "0:00:49"]
[BlackClock "0:00:07"]

1. e4 {[%clk 0:03:00]}  e5 {[%clk 0:02:59]} 2. Nf3 {[%clk 0:03:00]}  Nc6 {[%clk 0:03:00]} 3. Bb5 {[%clk 0:02:59]}  a6 {[%clk 0:03:00]} 4. Ba4 {[%clk 0:02:59]}  Nf6 {[%clk 0:03:00]} 5. O-O {[%clk 0:02:59]}  Nxe4 {[%clk 0:03:01]} 6. d4 {[%clk 0:02:59]}  b5 {[%clk 0:03:02]} 7. Bb3 {[%clk 0:02:59]}  d5 {[%clk 0:03:02]} 8. dxe5 {[%clk 0:02:59]}  Be6 {[%clk 0:03:03]} 9. c3 {[%clk 0:03:00]}  Bc5 {[%clk 0:03:03]} 10. Nbd2 {[%clk 0:02:58]}  O-O {[%clk 0:03:03]} 11. Bc2 {[%clk 0:02:57]}  Nxf2 {[%clk 0:03:04]} 12. Rxf2 {[%clk 0:02:57]}  Bxf2+ {[%clk 0:03:03]} 13. Kxf2 {[%clk 0:02:57]}  f6 {[%clk 0:03:04]} 14. exf6 {[%clk 0:02:57]}  Qxf6 {[%clk 0:03:05]} 15. Kg1 {[%clk 0:02:58]}  Ne5 {[%clk 0:03:01]} 16. Nxe5 {[%clk 0:02:52]}  Qxe5 {[%clk 0:02:56]} 17. Nf3 {[%clk 0:02:52]}  Qh5 {[%clk 0:02:53]} 18. Qd4 {[%clk 0:02:37]}  c6 {[%clk 0:02:15]} 19. Bf4 {[%clk 0:02:20]}  Bf5 {[%clk 0:02:04]} 20. Bxf5 {[%clk 0:02:11]}  Qxf5 {[%clk 0:01:55]} 21. Bg3 {[%clk 0:02:10]}  Rae8 {[%clk 0:01:53]} 22. Qd2 {[%clk 0:02:02]}  h6 {[%clk 0:01:37]} 23. Rf1 {[%clk 0:01:43]}  Qe4 {[%clk 0:01:24]} 24. h3 {[%clk 0:01:33]}  a5 {[%clk 0:01:07]} 25. Re1 {[%clk 0:01:28]}  Qc4 {[%clk 0:01:05]} 26. a3 {[%clk 0:01:25]}  Re4 {[%clk 0:00:56]} 27. Nd4 {[%clk 0:01:10]}  Rfe8 {[%clk 0:00:50]} 28. Rxe4 {[%clk 0:01:08]}  dxe4 {[%clk 0:00:44]} 29. Nf5 {[%clk 0:01:05]}  Qd3 {[%clk 0:00:34]} 30. Qf4 {[%clk 0:01:04]}  e3 {[%clk 0:00:27]} 31. Qg4 {[%clk 0:01:00]}  g5 {[%clk 0:00:18]} 32. Nxh6+ {[%clk 0:00:55]}  Kh7 {[%clk 0:00:18]} 33. Nf7 {[%clk 0:00:51]}  e2 {[%clk 0:00:13]} 34. Nxg5+ {[%clk 0:00:51]}  Kh6 {[%clk 0:00:08]} 35. Qh4+ {[%clk 0:00:48]}  Kg6 {[%clk 0:00:07]} 36. Qh7+ {[%clk 0:00:48]}  Kxg5 {[%clk 0:00:07]} 37. Qxd3 {[%clk 0:00:49]} 1-0


[Site "https://www.chess.com"]

[Event "Titled Tuesday Blitz April 12 Early 2022"]
[White "Rodchenkov, Vitaly"]
[Black "Madaminov, Mukhiddin"]
[WhiteFideId "4152964"]
[BlackFideId "14210703"]
[WhiteElo "2337"]
[BlackElo "1916"]
[Result "0-1"]
[Round "01"]
[TimeControl "180+1"]
[Date "2022.04.13"]
[WhiteClock "0:00:56"]
[BlackClock "0:00:34"]

1. Nf3 {[%clk 0:02:59]}  Nf6 {[%clk 0:02:59]} 2. c4 {[%clk 0:02:58]}  e6 {[%clk 0:02:55]} 3. g3 {[%clk 0:02:58]}  d5 {[%clk 0:02:55]} 4. cxd5 {[%clk 0:02:52]}  exd5 {[%clk 0:02:54]} 5. Bg2 {[%clk 0:02:52]}  Bd6 {[%clk 0:02:51]} 6. O-O {[%clk 0:02:52]}  O-O {[%clk 0:02:51]} 7. d4 {[%clk 0:02:53]}  b6 {[%clk 0:02:48]} 8. Nc3 {[%clk 0:02:53]}  a6 {[%clk 0:02:48]} 9. Bf4 {[%clk 0:02:53]}  Bxf4 {[%clk 0:02:45]} 10. gxf4 {[%clk 0:02:54]}  Bb7 {[%clk 0:02:45]} 11. e3 {[%clk 0:02:53]}  Nbd7 {[%clk 0:02:44]} 12. Rc1 {[%clk 0:02:50]}  Rc8 {[%clk 0:02:40]} 13. Ne5 {[%clk 0:02:50]}  Ne4 {[%clk 0:02:33]} 14. Nxe4 {[%clk 0:02:43]}  dxe4 {[%clk 0:02:34]} 15. Qc2 {[%clk 0:02:38]}  c5 {[%clk 0:02:07]} 16. Nxd7 {[%clk 0:02:32]}  Qxd7 {[%clk 0:02:03]} 17. Bxe4 {[%clk 0:02:26]}  cxd4 {[%clk 0:02:02]} 18. Bxh7+ {[%clk 0:02:23]}  Kh8 {[%clk 0:02:02]} 19. Qf5 {[%clk 0:02:24]}  Qe7 {[%clk 0:01:49]} 20. Qh5 {[%clk 0:02:14]}  g6 {[%clk 0:01:12]} 21. Bxg6+ {[%clk 0:02:12]}  Kg7 {[%clk 0:01:11]} 22. Qh7+ {[%clk 0:01:57]}  Kf6 {[%clk 0:01:10]} 23. Qh4+ {[%clk 0:01:57]}  Ke6 {[%clk 0:01:11]} 24. Bf5+ {[%clk 0:01:54]}  Kd6 {[%clk 0:01:07]} 25. Qxe7+ {[%clk 0:01:44]}  Kxe7 {[%clk 0:01:07]} 26. Rxc8 {[%clk 0:01:39]}  Bxc8 {[%clk 0:01:06]} 27. Bxc8 {[%clk 0:01:37]}  Rxc8 {[%clk 0:01:07]} 28. Rd1 {[%clk 0:01:30]}  dxe3 {[%clk 0:01:07]} 29. fxe3 {[%clk 0:01:31]}  Rc2 {[%clk 0:01:07]} 30. Rb1 {[%clk 0:01:30]}  Ke6 {[%clk 0:01:07]} 31. e4 {[%clk 0:01:28]}  Re2 {[%clk 0:01:06]} 32. e5 {[%clk 0:01:23]}  Kf5 {[%clk 0:01:04]} 33. a4 {[%clk 0:01:21]}  Kxf4 {[%clk 0:00:57]} 34. b4 {[%clk 0:01:20]}  Kxe5 {[%clk 0:00:51]} 35. Rc1 {[%clk 0:01:17]}  Re4 {[%clk 0:00:46]} 36. Rb1 {[%clk 0:01:14]}  f5 {[%clk 0:00:38]} 37. a5 {[%clk 0:01:12]}  bxa5 {[%clk 0:00:36]} 38. bxa5 {[%clk 0:01:12]}  Ra4 {[%clk 0:00:37]} 39. Re1+ {[%clk 0:01:09]}  Kf4 {[%clk 0:00:35]} 40. Rf1+ {[%clk 0:01:08]}  Kg5 {[%clk 0:00:35]} 41. h4+ {[%clk 0:01:06]}  Rxh4 {[%clk 0:00:35]} 42. Ra1 {[%clk 0:01:03]}  Rb4 {[%clk 0:00:33]} 43. Kf2 {[%clk 0:01:03]}  Kf4 {[%clk 0:00:33]} 44. Ra3 {[%clk 0:01:02]}  Rb2+ {[%clk 0:00:31]} 45. Kf1 {[%clk 0:01:00]}  Kg4 {[%clk 0:00:31]} 46. Kg1 {[%clk 0:01:00]}  f4 {[%clk 0:00:31]} 47. Ra4 {[%clk 0:01:00]}  Kg3 {[%clk 0:00:31]} 48. Ra3+ {[%clk 0:01:00]}  f3 {[%clk 0:00:31]} 49. Ra1 {[%clk 0:00:56]}  Rg2+ {[%clk 0:00:31]} 50. Kf1 {[%clk 0:00:56]}  Rh2 {[%clk 0:00:32]} 51. Kg1 {[%clk 0:00:55]}  f2+ {[%clk 0:00:32]} 52. Kf1 {[%clk 0:00:55]}  Rh1+ {[%clk 0:00:33]} 53. Ke2 {[%clk 0:00:56]}  Rxa1 {[%clk 0:00:34]} 0-1


[Site "https://www.chess.com"]